fUST/lending_fUST_20241110
["ID","MTS","AMOUNT","RATE_DAILY","PERIOD"]
[341741841,1731174640715,-379.8,0.000316,31]
[341741842,1731174640724,-178.851818,0.000316,2]
[341741843,1731174640734,-150.112233,0.000316,19]
[341741844,1731174640743,-150.112233,0.000316,10]
[341741845,1731174640752,-306.71095064,0.00031611,2]
[341741846,1731174640764,-250.0,0.0003164,27]
[341741847,1731174640774,-1210.14,0.00031646,2]
[341741848,1731174640783,-181.44038701,0.00031647,2]
[341741849,1731174640793,-208.95241898,0.00031647,2]
[341741850,1731174640802,-500.0,0.00031647,2]
[341741851,1731174640812,-196.70540553,0.00031647,2]
[341741852,1731174640823,-317.78803199,0.00031647,2]
[341741853,1731174640833,-238.0200727,0.00031647,2]
[341741854,1731174640843,-500.0,0.00031647,2]
[341741855,1731174640853,-198.96542032,0.00031647,2]
[341741856,1731174640863,-500.0,0.00031647,2]
[341741857,1731174640875,-500.0,0.00031647,2]
[341741858,1731174640885,-187.72020428,0.00031647,2]
[341741859,1731174640895,-1210.14,0.00031647,2]
[341741860,1731174640906,-1210.14,0.00031647,2]
[341741861,1731174640917,-1210.14,0.00031647,2]
[341741862,1731174640928,-1210.14,0.00031647,2]
[341741863,1731174640937,-1210.14,0.00031647,2]
[341741864,1731174640949,-1210.14,0.00031647,2]
[341741865,1731174640958,-1210.14,0.00031647,2]
[341741866,1731174640967,-1210.14,0.00031647,2]
[341741867,1731174640977,-1210.14,0.00031647,2]
[341741868,1731174640986,-1210.14,0.00031647,2]
[341741869,1731174640995,-1210.14,0.00031647,2]
[341741870,1731174641004,-1210.14,0.00031647,2]
[341741871,1731174641013,-1210.14,0.00031647,2]
[341741872,1731174641022,-1210.14,0.00031647,2]
[341741873,1731174641032,-1210.14,0.00031647,2]
[341741874,1731174641042,-1210.24089572,0.00031647,2]
[341741875,1731174641051,-600.0,0.00031647,2]
[341741876,1731174641060,-8505.3293641,0.00031648,30]
[341741877,1731174641069,-1373.48180684,0.00031648,2]
[341741878,1731174641078,-688.77558036,0.00031648,2]
[341741879,1731174641087,-1359021.80030087,0.00031648,10]
[341741880,1731174641159,-2750576.6411028,0.00031648,10]
[341741881,1731174641171,-1000.0,0.00031648,10]
[341741882,1731174641182,-15212.7972339,0.00031648,10]
[341741895,1731174643576,-1500.0,0.00031648,10]
[341741945,1731174646187,-327.332494,0.00031321,10]
[341741948,1731174947687,152.0,0.00031647,120]
[341741951,1731175222991,169.750587,0.00013973,2]
[341742203,1731175832593,-520.83333333,0.0002568,2]
[341742205,1731175832604,-206.664332,0.00028171,2]
[341742207,1731175832613,-940.5076069,0.00028405,2]
[341742209,1731175832623,-250.6565005,0.00028488,2]
[341742211,1731175832633,-200.0,0.00028588,15]
[341742213,1731175832642,-196.9257,0.00028643,2]
[341742215,1731175832652,-206.664332,0.00028856,2]
[341742217,1731175832661,-839.0740564,0.00028903,2]
[341742219,1731175832670,-162.956537,0.000293,2]
[341742221,1731175832681,-186.654137,0.000293,2]
[341742222,1731175832690,-91.40540286,0.00029541,2]
[341742225,1731175832710,-115.25892914,0.00029541,2]
[341742226,1731175832723,-300.0,0.00029999,2]
[341742228,1731175832733,-300.0,0.00029999,2]
[341742230,1731175832742,-720.21,0.0003,2]
[341742232,1731175832751,-1376.75623227,0.0003,2]
[341742234,1731175832763,-310.746,0.0003,2]
[341742245,1731175838625,-820.21442848,0.0003,2]
[341742246,1731175838637,-5265.28333925,0.0003,2]
[341742247,1731175838647,-150.99848916,0.00030036,2]
[341742248,1731175838657,-237.0,0.00030136,2]
[341742249,1731175838666,-159.85,0.00030136,2]
[341742250,1731175838676,-499.45,0.00030136,2]
[341742251,1731175838687,-249.7,0.00030136,2]
[341742252,1731175838696,-455.9,0.00030136,2]
[341742253,1731175838705,-611.26,0.00030136,2]
[341742254,1731175838715,-176.16,0.00030136,2]
[341742255,1731175838727,-366.1,0.00030136,2]
[341742256,1731175838735,-307.09,0.00030136,2]
[341742257,1731175838744,-442.28,0.00030136,2]
[341742258,1731175838754,-482.63,0.00030136,2]
[341742259,1731175838764,-500.0,0.00030136,2]
[341742260,1731175838774,-172.15,0.00030136,2]
[341742261,1731175838783,-500.0,0.00030136,2]
[341742262,1731175838794,-500.0,0.00030136,2]
[341742263,1731175838803,-284.46563105,0.00030136,2]
[341742264,1731175838812,-500.0,0.00030136,2]
[341742265,1731175838822,-500.0,0.00030136,2]
[341742266,1731175838831,-152.17,0.00030136,2]
[341742267,1731175838840,-500.0,0.00030136,2]
[341742268,1731175838851,-558.38,0.00030136,2]
[341742269,1731175838860,-500.0,0.00030136,2]
[341742270,1731175838870,-500.0,0.00030136,2]
[341742271,1731175838879,-500.0,0.00030136,2]
[341742272,1731175838888,-500.0,0.00030136,2]
[341742273,1731175838898,-500.0,0.00030136,2]
[341742274,1731175838907,-500.0,0.00030136,2]
[341742275,1731175838916,-418.27,0.00030136,2]
[341742276,1731175838924,-500.0,0.00030136,2]
[341742277,1731175838935,-500.0,0.00030136,2]
[341742278,1731175838945,-554.91817893,0.00030136,2]
[341742279,1731175838955,-176.92,0.00030136,2]
[341742280,1731175838964,-500.0,0.00030136,2]
[341742281,1731175838973,-274.47,0.00030136,2]
[341742282,1731175838982,-500.0,0.00030136,2]
[341742283,1731175838992,-500.0,0.00030136,2]
[341742284,1731175839001,-500.0,0.00030136,2]
[341742285,1731175839010,-500.0,0.00030136,2]
[341742286,1731175839020,-500.0,0.00030136,2]
[341742287,1731175839029,-257.0,0.00030136,2]
[341742288,1731175839039,-500.0,0.00030136,2]
[341742289,1731175839048,-500.0,0.00030136,2]
[341742290,1731175839057,-621.4,0.00030136,2]
[341742291,1731175839078,-592.57,0.00030136,2]
[341742292,1731175839088,-332.55239623,0.00030136,2]
[341742293,1731175839098,-500.0,0.00030136,2]
[341742294,1731175839108,-346.1,0.00030136,2]
[341742295,1731175839117,-500.0,0.00030136,2]
[341742296,1731175839128,-500.0,0.00030136,2]
[341742297,1731175839138,-500.0,0.00030136,2]
[341742298,1731175839148,-500.0,0.00030136,2]
[341742299,1731175839158,-435.46,0.00030136,2]
[341742300,1731175839168,-600.88,0.00030136,2]
[341742301,1731175839179,-304.47,0.00030136,2]
[341742302,1731175839188,-500.0,0.00030136,2]
[341742303,1731175839198,-500.0,0.00030136,2]
[341742304,1731175839208,-500.0,0.00030136,2]
[341742305,1731175839218,-500.0,0.00030136,2]
[341742306,1731175839227,-161.1,0.00030136,2]
[341742307,1731175839238,-616.56,0.00030136,2]
[341742308,1731175839247,-307.13,0.00030136,2]
[341742309,1731175839257,-316.4,0.00030136,2]
[341742310,1731175839268,-626.54,0.00030136,2]
[341742311,1731175839278,-500.0,0.00030136,2]
[341742312,1731175839287,-233.81,0.00030136,2]
[341742313,1731175839297,-365.21,0.00030136,2]
[341742314,1731175839306,-364.74,0.00030136,2]
[341742315,1731175839316,-500.0,0.00030136,2]
[341742316,1731175839326,-1365.28,0.00030136,2]
[341742317,1731175839336,-454.93,0.00030136,2]
[341742318,1731175839345,-500.0,0.00030136,2]
[341742319,1731175839355,-500.0,0.00030136,2]
[341742320,1731175839364,-500.0,0.00030136,2]
[341742321,1731175839374,-500.0,0.00030136,2]
[341742322,1731175839384,-500.0,0.00030136,2]
[341742323,1731175839394,-510.63190878,0.00030136,2]
[341742324,1731175839404,-500.0,0.00030136,2]
[341742325,1731175839414,-500.0,0.00030136,2]
[341742326,1731175839424,-500.0,0.00030136,2]
[341742327,1731175839436,-500.0,0.00030136,2]
[341742328,1731175839446,-500.0,0.00030136,2]
[341742329,1731175839456,-572.21,0.00030136,2]
[341742330,1731175839466,-500.0,0.00030136,2]
[341742331,1731175839475,-500.0,0.00030136,2]
[341742332,1731175839485,-309.31127447,0.00030136,2]
[341742333,1731175839495,-229.54,0.00030136,2]
[341742334,1731175839505,-497.0,0.00030136,2]
[341742335,1731175839516,-241.64,0.00030136,2]
[341742336,1731175839526,-158.01,0.00030136,2]
[341742337,1731175839535,-1958.65,0.00030136,2]
[341742338,1731175839545,-270.65,0.00030136,2]
[341742339,1731175839555,-500.0,0.00030136,2]
[341742340,1731175839564,-500.0,0.00030136,2]
[341742341,1731175839574,-555.2,0.00030136,2]
[341742342,1731175839584,-500.0,0.00030136,2]
[341742343,1731175839594,-948.69,0.00030136,120]
[341742344,1731175839603,-231.25,0.00030136,2]
[341742345,1731175839613,-500.0,0.00030136,2]
[341742346,1731175839623,-500.0,0.00030136,2]
[341742347,1731175839633,-500.0,0.00030136,2]
[341742348,1731175839642,-500.0,0.00030136,2]
[341742349,1731175839652,-500.0,0.00030136,2]
[341742350,1731175839661,-500.0,0.00030136,2]
[341742351,1731175839671,-399.43,0.00030136,2]
[341742352,1731175839686,-435.97,0.00030136,2]
[341742353,1731175839695,-500.0,0.00030136,2]
[341742354,1731175839706,-224.73772339,0.00030137,2]
[341742355,1731175839717,-150.9984891,0.00030253,2]
[341742356,1731175839728,-500.0,0.00030336,5]
[341742357,1731175839738,-500.0,0.00030336,5]
[341742358,1731175839748,-500.0,0.00030336,2]
[341742359,1731175839757,-300.0,0.00030336,5]
[341742360,1731175839767,-438.7010807,0.00030408,5]
[341742361,1731175839777,-500.0,0.00030408,5]
[341742362,1731175839786,-500.68879954,0.00030408,5]
[341742363,1731175839798,-500.0,0.00030409,2]
[341742364,1731175839808,-500.0,0.0003041,2]
[341742365,1731175839817,-464.94,0.0003041,2]
[341742366,1731175839827,-500.0,0.0003041,2]
[341742367,1731175839837,-234.81,0.0003041,2]
[341742368,1731175839847,-500.0,0.0003041,2]
[341742369,1731175839858,-500.0,0.0003041,2]
[341742370,1731175839867,-500.0,0.0003041,2]
[341742371,1731175839877,-581.89,0.0003041,2]
[341742372,1731175839887,-247.2,0.0003041,2]
[341742373,1731175839896,-500.0,0.0003041,2]
[341742374,1731175839906,-500.0,0.0003041,2]
[341742375,1731175839916,-500.0,0.0003041,2]
[341742376,1731175839925,-324.17,0.0003041,2]
[341742377,1731175839936,-1365.28,0.0003041,2]
[341742378,1731175839946,-500.0,0.0003041,2]
[341742380,1731175839955,-416.1,0.0003041,2]
[341742381,1731175839964,-285.8104099,0.0003041,2]
[341742382,1731175839974,-500.0,0.0003041,2]
[341742383,1731175839983,-500.0,0.0003041,2]
[341742384,1731175839993,-500.0,0.0003041,2]
[341742385,1731175840003,-500.0,0.0003041,2]
[341742386,1731175840013,-1958.65,0.0003041,2]
[341742387,1731175840023,-500.0,0.0003041,2]
[341742388,1731175840032,-555.35,0.0003041,2]
[341742389,1731175840043,-948.69,0.0003041,120]
[341742390,1731175840052,-500.0,0.0003041,2]
[341742391,1731175840062,-500.0,0.0003041,2]
[341742392,1731175840071,-562.3856789,0.0003041,2]
[341742393,1731175840081,-500.0,0.0003041,2]
[341742394,1731175840090,-500.0,0.0003041,2]
[341742395,1731175840100,-399.73,0.0003041,2]
[341742396,1731175840109,-150.9984891,0.00030469,2]
[341742397,1731175840119,-500.0,0.00030683,7]
[341742398,1731175840128,-500.0,0.00030684,2]
[341742399,1731175840137,-500.0,0.00030684,2]
[341742400,1731175840147,-325.15,0.00030684,2]
[341742401,1731175840156,-500.0,0.00030684,2]
[341742402,1731175840165,-500.0,0.00030684,2]
[341742403,1731175840175,-388.21557379,0.00030684,2]
[341742404,1731175840185,-1365.28,0.00030684,2]
[341742405,1731175840195,-194.59,0.00030684,2]
[341742406,1731175840204,-365.84,0.00030684,2]
[341742407,1731175840214,-500.0,0.00030684,2]
[341742408,1731175840223,-1958.65,0.00030684,2]
[341742409,1731175840233,-948.69,0.00030684,120]
[341742410,1731175840242,-150.9984891,0.00030686,2]
[341742411,1731175840252,-150.9984891,0.00030902,2]
[341742412,1731175840261,-307.99,0.00030955,2]
[341742413,1731175840271,-183.94416783,0.00030957,2]
[341742414,1731175840280,-269.88,0.00030958,2]
[341742415,1731175840289,-502.66914012,0.00030958,14]
[341742416,1731175840299,-456.39,0.00030958,2]
[341742417,1731175840308,-500.0,0.00030958,2]
[341742418,1731175840318,-1365.28,0.00030958,2]
[341742419,1731175840327,-337.39896433,0.00030958,2]
[341742420,1731175840337,-1958.65,0.00030958,2]
[341742421,1731175840346,-948.69,0.00030958,120]
[341742422,1731175840356,-150.9984891,0.00031119,2]
[341742423,1731175840365,-1000.35,0.00031212,10]
[341742424,1731175840374,-160.251,0.0003122,2]
[341742425,1731175840383,-251.21,0.00031222,3]
[341742426,1731175840393,-753.63,0.00031222,3]
[341742427,1731175840402,-833.62,0.00031222,10]
[341742428,1731175840411,-500.0,0.00031232,2]
[341742429,1731175840420,-1365.28,0.00031232,2]
[341742430,1731175840430,-1958.65,0.00031232,2]
[341742431,1731175840440,-948.69,0.00031232,120]
[341742432,1731175840449,-150.9984891,0.00031335,2]
[341742433,1731175840459,-167.89311321,0.000314,2]
[341742434,1731175840468,-500.0,0.00031405,2]
[341742435,1731175840477,-12264.66719734,0.00031411,2]
[341742436,1731175840487,-1000.0,0.00031433,2]
[341742437,1731175840496,-1000.0,0.00031482,2]
[341742438,1731175840505,-334.25,0.000315,31]
[341742439,1731175840515,-334.25,0.000315,31]
[341742440,1731175840525,-334.25,0.000315,31]
[341742441,1731175840534,-334.25,0.000315,31]
[341742442,1731175840543,-334.25,0.000315,31]
[341742443,1731175840552,-334.25,0.000315,31]
[341742444,1731175840561,-334.25,0.000315,31]
[341742445,1731175840570,-334.25,0.000315,31]
[341742446,1731175840579,-334.25,0.000315,31]
[341742447,1731175840590,-334.25,0.000315,31]
[341742448,1731175840599,-334.25,0.000315,31]
[341742449,1731175840608,-334.25,0.000315,31]
[341742450,1731175840618,-500.0,0.00031506,2]
[341742451,1731175840627,-1365.28,0.00031506,2]
[341742452,1731175840636,-1958.65,0.00031506,2]
[341742453,1731175840645,-948.69,0.00031506,120]
[341742454,1731175840654,-150.9984891,0.00031552,2]
[341742456,1731175840663,-1000.0,0.00031552,2]
[341742457,1731175840673,-150.112233,0.000316,11]
[341742458,1731175840684,-150.112233,0.000316,12]
[341742459,1731175840693,-150.112233,0.000316,12]
[341742460,1731175840702,-500.0,0.000316,36]
[341742461,1731175840712,-62254.79240388,0.000316,2]
[341742462,1731175840724,-500.0,0.0003164,2]
[341742463,1731175840734,-305.9382545,0.00031644,30]
[341742464,1731175840743,-308.5413885,0.00031644,30]
[341742465,1731175840752,-4194.41,0.00031646,120]
[341742466,1731175840762,-1000.0,0.00031647,2]
[341742467,1731175840772,-151.0,0.00031647,7]
[341742468,1731175840781,-178.61771,0.00031647,7]
[341742469,1731175840790,-239.91711,0.00031647,7]
[341742470,1731175840800,-152.675519,0.00031647,7]
[341742471,1731175840810,-2545.08520786,0.00031648,4]
[341742472,1731175840820,-349.39609778,0.00031649,2]
[341742473,1731175840829,-500.0,0.00031649,2]
[341742474,1731175840838,-151.0,0.0003165,7]
[341742475,1731175840847,-171.19876224,0.0003165,10]
[341742476,1731175840857,-152.76302743,0.0003165,10]
[341742477,1731175840866,-154.21554673,0.0003165,10]
[341742478,1731175840876,-500.0,0.0003165,10]
[341742479,1731175840886,-163.96794582,0.0003165,10]
[341742480,1731175840895,-154.10109037,0.0003165,10]
[341742481,1731175840904,-500.0,0.00031651,2]
[341742482,1731175840914,-595.14000001,0.00031651,2]
[341742483,1731175840923,-600.0,0.00031651,2]
[341742484,1731175840934,-324.29982127,0.00031651,2]
[341742485,1731175840943,-500.0,0.00031651,2]
[341742486,1731175840952,-166.61405089,0.00031651,2]
[341742487,1731175840962,-500.0,0.00031651,2]
[341742488,1731175840972,-500.0,0.00031651,2]
[341742489,1731175840981,-170.67993722,0.00031651,2]
[341742490,1731175840990,-151.0,0.00031652,7]
[341742491,1731175840999,-151.0,0.00031652,7]
[341742492,1731175841008,-151.0,0.00031652,7]
[341742493,1731175841017,-151.0,0.00031652,7]
[341742494,1731175841027,-151.0,0.00031652,7]
[341742495,1731175841037,-151.0,0.00031652,7]
[341742497,1731175841047,-151.0,0.00031652,7]
[341742499,1731175841056,-542.113231,0.00031652,7]
[341742501,1731175841065,-542.113231,0.00031652,7]
[341742502,1731175841075,-542.113231,0.00031652,7]
[341742504,1731175841085,-282.323668,0.00031652,7]
[341742506,1731175841094,-542.113231,0.00031652,7]
[341742507,1731175841104,-542.113231,0.00031652,7]
[341742508,1731175841114,-542.113231,0.00031652,7]
[341742509,1731175841123,-151.0,0.00031652,7]
[341742510,1731175841132,-151.0,0.00031652,7]
[341742511,1731175841142,-151.0,0.00031652,7]
[341742512,1731175841151,-626.689014,0.00031652,7]
[341742513,1731175841161,-626.689014,0.00031652,7]
[341742514,1731175841170,-626.689014,0.00031652,7]
[341742515,1731175841179,-626.689014,0.00031652,7]
[341742516,1731175841189,-151.0,0.00031652,7]
[341742517,1731175841198,-151.0,0.00031652,7]
[341742518,1731175841305,-151.0,0.00031652,7]
[341742519,1731175841315,-626.689014,0.00031652,7]
[341742520,1731175841324,-626.689014,0.00031652,7]
[341742521,1731175841334,-151.0,0.00031652,7]
[341742522,1731175841344,-151.0,0.00031652,7]
[341742523,1731175841353,-288.97883,0.00031652,7]
[341742524,1731175841362,-151.0,0.00031652,7]
[341742526,1731175841371,-151.0,0.00031652,7]
[341742527,1731175841381,-151.0,0.00031652,7]
[341742528,1731175841390,-151.0,0.00031652,7]
[341742530,1731175841399,-151.0,0.00031652,7]
[341742532,1731175841408,-200.48,0.00031652,30]
[341742533,1731175841418,-686.74090342,0.00031652,2]
[341742534,1731175841427,-344.38779019,0.00031652,2]
[341742535,1731175841437,-2647862.00850219,0.00031652,10]
[341742537,1731175841517,-417.68,0.00030136,2]
[341742538,1731175841526,-31512.58939199,0.00031652,10]
[341742539,1731175841537,-830.75913945,0.00031652,10]
[341742540,1731175841548,-114377.36486764,0.00031652,10]
[341742570,1731175846416,-28308.64457247,0.00031652,10]
[341742571,1731175846428,-6890.44425316,0.00031652,10]
[341742590,1731175965217,151.0,1e-08,30]
[341742591,1731175971387,174.181185,0.00013973,2]
[341742615,1731176478868,520.83333333,0.00020844,2]
[341742618,1731176623899,4353.82854697,0.00031658,120]
[341742633,1731176656387,174.181185,0.00013973,2]
[341742690,1731176790849,520.83333333,0.00020844,2]
[341742731,1731176918812,847.71856844,0.0002,2]
[341742894,1731177032464,-520.83333333,0.00023311,2]
[341742895,1731177032473,-416.3046973,0.00025461,2]
[341742896,1731177032483,-400.0,0.00025469,3]
[341742897,1731177032493,-502.3699055,0.0002566,2]
[341742898,1731177032504,-2726.1660702,0.00026063,2]
[341742899,1731177032514,-191.9879426,0.00026219,2]
[341742900,1731177032522,-250.0,0.00026302,2]
[341742901,1731177032532,-300.0,0.00027011,2]
[341742902,1731177032541,-200.0,0.00027011,2]
[341742903,1731177032550,-23159.7749386,0.00027012,2]
[341742904,1731177032559,-584.9773731,0.00027249,2]
[341742905,1731177032568,-169.00020195,0.00027347,2]
[341742906,1731177032577,-164.664462,0.00027365,2]
[341742907,1731177032586,-169.579516,0.00027385,2]
[341742909,1731177032596,-3000.0,0.00027447,2]
[341742911,1731177032605,-1168.458372,0.00027447,2]
[341742913,1731177032614,-2733.4975228,0.00027518,2]
[341742914,1731177032623,-1247.0973923,0.00027531,2]
[341742915,1731177032632,-232.88619366,0.00027796,2]
[341742916,1731177032641,-4517.638545,0.00027796,2]
[341742917,1731177032650,-364.475711,0.00027804,2]
[341742918,1731177032659,-860.2637443,0.00028039,2]
[341742919,1731177032669,-169.00020191,0.00028049,2]
[341742920,1731177032680,-4517.638545,0.00028481,2]
[341742921,1731177032689,-164.664462,0.00028608,2]
[341742922,1731177032698,-160.0,0.0002865,3]
[341742923,1731177032707,-169.00020191,0.00028751,2]
[341742924,1731177032716,-4517.638545,0.00029166,2]
[341742925,1731177032724,-169.00020191,0.00029453,2]
[341742926,1731177032734,-220.0,0.00029712,2]
[341742927,1731177032743,-164.664462,0.00029852,2]
[341742928,1731177032752,-648.19,0.0003,2]
[341742929,1731177032762,-35000.0,0.0003,2]
[341742930,1731177032771,-197.0,0.0003,2]
[341742931,1731177032780,-159.38499007,0.00030036,2]
[341742932,1731177032789,-500.0,0.000301,5]
[341742933,1731177032798,-500.33589352,0.000301,5]
[341742934,1731177032807,-500.0,0.000301,5]
[341742935,1731177032816,-500.0,0.00030119,5]
[341742936,1731177032825,-251.21,0.00030126,3]
[341742937,1731177032834,-1147.23,0.00030126,10]
[341742938,1731177032843,-753.63,0.00030126,3]
[341742939,1731177032853,-485.97386828,0.00030135,2]
[341742940,1731177032866,-147.97029955,0.00030135,2]
[341742942,1731177032875,-628.65,0.00030136,2]
[341742944,1731177032885,-500.0,0.00030136,2]
[341742945,1731177032895,-531.07,0.00030136,2]
[341742947,1731177032905,-500.0,0.00030136,2]
[341742949,1731177032915,-450.68596909,0.00030136,2]
[341742951,1731177032925,-500.0,0.00030136,2]
[341742953,1731177032934,-500.0,0.00030136,2]
[341742955,1731177032943,-166.11,0.00030136,2]
[341742957,1731177032952,-524.78461665,0.00030136,2]
[341742959,1731177032961,-500.0,0.00030136,2]
[341742961,1731177032971,-500.0,0.00030136,2]
[341742963,1731177032981,-500.0,0.00030136,2]
[341742965,1731177032991,-500.0,0.00030136,2]
[341742967,1731177033000,-500.0,0.00030136,2]
[341742969,1731177033009,-500.0,0.00030136,2]
[341742971,1731177033018,-500.0,0.00030136,2]
[341742973,1731177033027,-500.0,0.00030136,2]
[341742975,1731177033036,-500.0,0.00030136,2]
[341742977,1731177033045,-500.0,0.00030136,2]
[341742979,1731177033054,-500.0,0.00030136,2]
[341742981,1731177033063,-528.9,0.00030136,2]
[341742982,1731177033072,-500.0,0.00030136,2]
[341742984,1731177033081,-500.0,0.00030136,2]
[341742986,1731177033090,-500.0,0.00030136,2]
[341742988,1731177033099,-500.0,0.00030136,2]
[341742990,1731177033109,-500.0,0.00030136,2]
[341742992,1731177033118,-252.02,0.00030136,2]
[341742994,1731177033128,-500.0,0.00030136,2]
[341742996,1731177033137,-500.0,0.00030136,2]
[341742998,1731177033146,-500.0,0.00030136,2]
[341743000,1731177033156,-500.0,0.00030136,2]
[341743002,1731177033165,-262.9,0.00030136,2]
[341743004,1731177033175,-500.0,0.00030136,2]
[341743006,1731177033184,-500.0,0.00030136,2]
[341743008,1731177033193,-493.85982093,0.00030136,2]
[341743010,1731177033202,-327.12806717,0.00030136,2]
[341743012,1731177033211,-500.0,0.00030136,2]
[341743014,1731177033220,-500.0,0.00030136,2]
[341743016,1731177033230,-314.64,0.00030136,2]
[341743018,1731177033239,-500.0,0.00030136,2]
[341743020,1731177033249,-500.0,0.00030136,2]
[341743022,1731177033258,-500.0,0.00030136,2]
[341743024,1731177033267,-500.0,0.00030136,2]
[341743026,1731177033276,-500.0,0.00030136,2]
[341743028,1731177033285,-194.68,0.00030136,2]
[341743030,1731177033294,-1251.51,0.00030136,2]
[341743032,1731177033303,-500.0,0.00030136,2]
[341743034,1731177033312,-365.84,0.00030136,2]
[341743035,1731177033321,-194.59,0.00030136,2]
[341743036,1731177033331,-500.0,0.00030136,2]
[341743037,1731177033340,-500.0,0.00030136,2]
[341743038,1731177033350,-500.0,0.00030136,2]
[341743040,1731177033359,-500.0,0.00030136,2]
[341743041,1731177033369,-416.65185166,0.00030136,2]
[341743047,1731177038562,-83.34814834,0.00030136,2]
[341743048,1731177038572,-595.14000001,0.00030136,2]
[341743049,1731177038582,-500.0,0.00030136,2]
[341743050,1731177038591,-152.51,0.00030136,2]
[341743051,1731177038600,-869.63,0.00030136,120]
[341743052,1731177038610,-500.0,0.00030136,2]
[341743053,1731177038619,-500.0,0.00030136,2]
[341743054,1731177038628,-500.0,0.00030136,2]
[341743055,1731177038637,-4194.41,0.00030136,120]
[341743056,1731177038646,-1816.26,0.00030136,2]
[341743057,1731177038655,-500.0,0.00030136,2]
[341743058,1731177038664,-307.99,0.00030136,2]
[341743059,1731177038675,-500.0,0.00030136,2]
[341743060,1731177038684,-500.0,0.00030136,2]
[341743061,1731177038694,-500.0,0.00030136,2]
[341743062,1731177038703,-573.13,0.00030136,2]
[341743063,1731177038712,-500.0,0.00030136,2]
[341743064,1731177038721,-217.36994445,0.00030137,2]
[341743065,1731177038730,-169.00020191,0.00030154,2]
[341743066,1731177038739,-500.90577611,0.00030231,5]
[341743067,1731177038749,-500.0,0.00030244,5]
[341743068,1731177038758,-500.0,0.00030244,5]
[341743069,1731177038767,-500.3261136,0.00030244,5]
[341743070,1731177038776,-500.0,0.00030244,5]
[341743071,1731177038785,-501.18955706,0.00030244,5]
[341743072,1731177038794,-258.6136513,0.00030244,5]
[341743073,1731177038803,-500.0,0.00030244,2]
[341743074,1731177038813,-561.7023446,0.00030244,5]
[341743075,1731177038822,-500.0,0.00030244,5]
[341743076,1731177038831,-500.0,0.00030244,5]
[341743077,1731177038840,-368.48716216,0.0003041,2]
[341743078,1731177038849,-500.0,0.0003041,2]
[341743079,1731177038858,-325.15,0.0003041,2]
[341743080,1731177038867,-334.91,0.0003041,2]
[341743081,1731177038876,-250.35,0.0003041,2]
[341743082,1731177038885,-500.0,0.0003041,2]
[341743083,1731177038894,-500.0,0.0003041,2]
[341743084,1731177038903,-388.21557379,0.0003041,2]
[341743085,1731177038912,-500.0,0.0003041,2]
[341743086,1731177038922,-1251.51,0.0003041,2]
[341743087,1731177038933,-337.39896433,0.0003041,2]
[341743088,1731177038942,-869.63,0.0003041,120]
[341743089,1731177038951,-1816.26,0.0003041,2]
[341743090,1731177038960,-500.0,0.0003041,2]
[341743091,1731177038969,-500.0,0.00030684,2]